[Event "1er Open Estival de Marseille"]
[Site "Marseille, France"]
[Date "2023.07.31"]
[Round "1.2"]
[White "Espinosa Aranda, Angel"]
[Black "Douchez, Tony"]
[Result "1-0"]
[TimeControl "90+30s/move"]
[WhiteElo "2443"]
[BlackElo "1788"]

1. e4 {[%clk 01:30:54]} {[%emt 00:00:06]} Nc6 {[%clk 01:30:54]} {[%emt
00:00:06]} 2. Nc3 {[%clk 01:30:43]} {[%emt 00:00:41]} e5 {[%clk 01:31:15]}
{[%emt 00:00:09]} 3. Nf3 {[%clk 01:30:33]} {[%emt 00:00:41]} Nf6 {[%clk
01:31:39]} {[%emt 00:00:06]} 4. Bb5 {[%clk 01:30:47]} {[%emt 00:00:15]} Bb4
{[%clk 01:31:40]} {[%emt 00:00:29]} 5. O-O {[%clk 01:30:36]} {[%emt 00:00:41]}
O-O {[%clk 01:31:52]} {[%emt 00:00:18]} 6. Bxc6 {[%clk 01:30:26]} {[%emt
00:00:40]} dxc6 {[%clk 01:31:58]} {[%emt 00:00:24]} 7. d3 {[%clk 01:30:50]}
{[%emt 00:00:07]} Bg4 {[%clk 01:31:21]} {[%emt 00:01:08]} 8. h3 {[%clk
01:30:53]} {[%emt 00:00:26]} Bh5 {[%clk 01:27:13]} {[%emt 00:04:37]} 9. Kh2
{[%clk 01:30:00]} {[%emt 00:01:23]} Bxc3 {[%clk 01:23:45]} {[%emt 00:03:59]} 10.
bxc3 {[%clk 01:30:24]} {[%emt 00:00:06]} Qd6 {[%clk 01:20:22]} {[%emt
00:03:53]} 11. c4 {[%clk 01:22:45]} {[%emt 00:08:10]} Nd7 {[%clk 01:15:52]}
{[%emt 00:04:59]} 12. g4 {[%clk 01:22:13]} {[%emt 00:01:02]} Bg6 {[%clk
01:16:03]} {[%emt 00:00:19]} 13. Nh4 {[%clk 01:21:32]} {[%emt 00:01:11]} f6
{[%clk 01:13:32]} {[%emt 00:03:01]} 14. f4 {[%clk 01:20:38]} {[%emt 00:01:23]}
Bf7 {[%clk 01:10:24]} {[%emt 00:03:38]} 15. Nf5 {[%clk 01:17:44]} {[%emt
00:03:24]} Qe6 {[%clk 01:09:30]} {[%emt 00:01:25]} 16. Qf3 {[%clk 01:17:05]}
{[%emt 00:01:09]} Bg6 {[%clk 01:05:29]} {[%emt 00:04:31]} 17. Qg3 {[%clk
01:05:41]} {[%emt 00:11:54]} Kh8 {[%clk 00:59:23]} {[%emt 00:06:36]} 18. Nh4
{[%clk 00:59:07]} {[%emt 00:07:04]} exf4 {[%clk 00:58:43]} {[%emt 00:01:10]} 19.
Bxf4 {[%clk 00:59:26]} {[%emt 00:00:11]} Ne5 {[%emt 00:06:00]} 20. g5 {[%emt
00:07:14]} Rae8 {[%emt 00:05:45]} 21. Rf2 {[%emt 00:04:50]} Qe7 {[%emt
00:02:39]} 22. Raf1 {[%emt 00:04:49]} fxg5 {[%emt 00:03:27]} 23. Bxg5 {[%emt
00:00:39]} Rxf2+ {[%emt 00:00:18]} 24. Rxf2 {[%emt 00:00:18]} Qe6 {[%emt
00:01:10]} 25. Nxg6+ {[%emt 00:06:02]} Nxg6 {[%emt 00:01:55]} 26. Qxc7 {[%emt
00:00:41]} Kg8 {[%emt 00:02:36]} 27. Be3 {[%emt 00:01:34]} b6 {[%emt 00:06:07]}
28. Bd4 {[%emt 00:01:23]} Re7 {[%emt 00:03:32]} 29. Qb8+ {[%emt 00:03:43]} Re8
{[%emt 00:00:06]} 30. Qxa7 {[%emt 00:04:35]} Qd6+ {[%emt 00:00:55]} 31. Kh1
{[%emt 00:00:12]} Qxd4 {[%emt 00:00:21]} 32. Qf7+ 1-0

lk 01:29:02]}
{[%emt 00:02:02]} 3. b3 {[%clk 01:30:20]} {[%emt 00:01:15]} Bg7 {[%clk
01:28:44]} {[%emt 00:00:48]} 4. Bb2 {[%clk 01:30:31]} {[%emt 00:00:18]} O-O
{[%clk 01:28:55]} {[%emt 00:00:19]} 5. g3 {[%clk 01:30:56]} {[%emt 00:00:05]}
c5 {[%clk 01:27:47]} {[%emt 00:01:38]} 6. Bg2 {[%clk 01:31:04]} {[%emt
00:00:21]} d5 {[%clk 01:26:28]} {[%emt 00:01:50]} 7. O-O {[%clk 01:31:07]}
{[%emt 00:00:27]} cxd4 {[%clk 01:23:57]} {[%emt 00:03:01]} 8. Bxd4 {[%clk
01:19:33]} {[%emt 00:12:04]} Nc6 {[%clk 01:23:48]} {[%emt 00:00:39]} 9. Bb2
{[%clk 01:19:57]} {[%emt 00:00:06]} Qc7 {[%clk 01:19:35]} {[%emt 00:04:43]} 10.
Na3 {[%clk 01:15:00]} {[%emt 00:05:27]} e5 {[%clk 01:10:48]} {[%emt 00:09:16]}
11. e3 {[%clk 01:12:36]} {[%emt 00:02:55]} Rd8 {[%clk 01:01:21]} {[%emt
00:09:57]} 12. Qe2 {[%clk 01:11:30]} {[%emt 00:01:36]} e4 {[%clk 00:59:48]}
{[%emt 00:02:02]} 13. Nd4 {[%clk 01:09:52]} {[%emt 00:02:07]} Bg4 {[%clk
01:00:12]} {[%emt 00:00:07]} 14. f3 {[%clk 01:04:51]} {[%emt 00:05:31]} exf3
{[%clk 01:00:31]} {[%emt 00:00:12]} 15. Bxf3 {[%clk 01:01:59]} {[%emt
00:03:22]} Bh3 {[%clk 00:50:19]} {[%emt 00:10:41]} 16. Bg2 {[%clk 00:53:24]}
{[%emt 00:09:05]} Bxg2 {[%clk 00:50:43]} {[%emt 00:00:07]} 17. Qxg2 {[%clk
00:53:28]} {[%emt 00:00:26]} Qe7 {[%clk 00:49:40]} {[%emt 00:01:33]} 18. Rae1
{[%clk 00:53:22]} {[%emt 00:00:36]} Ne5 {[%clk 00:45:18]} {[%emt 00:04:52]} 19.
Nab5 {[%clk 00:45:48]} {[%emt 00:08:04]} Ne4 {[%clk 00:42:47]} {[%emt
00:03:01]} 20. Nc3 {[%clk 00:31:12]} {[%emt 00:15:06]} f5 {[%clk 00:40:00]}
{[%emt 00:03:17]} 21. Nd1 {[%clk 00:20:19]} {[%emt 00:11:22]} Rac8 {[%clk
00:36:54]} {[%emt 00:03:37]} 22. Nf3 {[%clk 00:16:45]} {[%emt 00:04:03]} Nxf3+
{[%clk 00:29:22]} {[%emt 00:08:03]} 23. Rxf3 {[%clk 00:16:11]} {[%emt
00:01:04]} Qc5 {[%clk 00:29:11]} {[%emt 00:00:41]} 24. Bxg7 {[%clk 00:11:13]}
{[%emt 00:05:28]} Kxg7 {[%clk 00:29:37]} {[%emt 00:00:05]} 25. Re2 {[%clk
00:08:52]} {[%emt 00:02:51]} d4 {[%clk 00:29:57]} {[%emt 00:00:10]} 26. Nf2
{[%clk 00:08:23]} {[%emt 00:00:58]} Ng5 {[%clk 00:26:21]} {[%emt 00:04:06]} 27.
Rf4 {[%clk 00:08:14]} {[%emt 00:00:40]} dxe3 {[%clk 00:26:39]} {[%emt
00:00:13]} 28. Nd3 {[%clk 00:08:23]} {[%emt 00:00:20]} Qc6 {[%clk 00:22:42]}
{[%emt 00:04:27]} 29. Qxc6 {[%clk 00:02:49]} {[%emt 00:06:04]} Rxc6 {[%clk
00:23:08]} {[%emt 00:00:04]} 30. Kg2 {[%clk 00:02:31]} {[%emt 00:00:48]} Ne6
{[%clk 00:23:14]} {[%emt 00:00:24]} 31. Rc4 {[%clk 00:02:37]} {[%emt 00:00:24]}
Rxc4 {[%clk 00:22:47]} {[%emt 00:00:57]} 32. bxc4 {[%clk 00:03:06]} {[%emt
00:00:01]} Nd4 {[%clk 00:23:10]} {[%emt 00:00:07]} 33. Rxe3 {[%clk 00:03:30]}
{[%emt 00:00:06]} Nxc2 {[%clk 00:23:37]} {[%emt 00:00:03]} 34. Re2 {[%clk
00:02:47]} {[%emt 00:01:12]} Rxd3 {[%clk 00:23:55]} {[%emt 00:00:12]} 35. Rxc2
{[%clk 00:03:11]} {[%emt 00:00:07]} b6 {[%clk 00:24:20]} {[%emt 00:00:05]} 36.
Kf2 {[%clk 00:00:31]} {[%emt 00:03:10]} Ra3 {[%clk 00:24:42]} {[%emt 00:00:08]}
37. Rb2 {[%clk 00:00:54]} {[%emt 00:00:08]} Kf6 {[%clk 00:24:50]} {[%emt
00:00:21]} 38. Rc2 {[%clk 00:01:03]} {[%emt 00:00:21]} Kg5 {[%clk 00:24:50]}
{[%emt 00:00:30]} 39. Kg2 {[%clk 00:01:20]} {[%emt 00:00:13]} h5 {[%clk
00:25:09]} {[%emt 00:00:11]} 40. Kf2 {[%clk 00:01:22]} {[%emt 00:00:28]} h4
{[%clk 00:25:20]} {[%emt 00:00:19]} 41. Kg2 {[%clk 00:01:37]} {[%emt 00:00:15]}
hxg3 {[%clk 00:25:37]} {[%emt 00:00:12]} 42. hxg3 {[%clk 00:02:01]} {[%emt
00:00:06]} Kg4 {[%clk 00:25:55]} {[%emt 00:00:12]} 43. Kh2 {[%clk 00:01:55]}
{[%emt 00:00:36]} Rxg3 {[%clk 00:25:59]} {[%emt 00:00:25]} 44. c5 {[%clk
00:02:18]} {[%emt 00:00:07]} bxc5 {[%clk 00:26:19]} {[%emt 00:00:10]} 45. Rxc5
{[%clk 00:02:34]} {[%emt 00:00:14]} Ra3 {[%clk 00:26:43]} {[%emt 00:00:06]} 46.
Rc2 {[%clk 00:02:53]} {[%emt 00:00:12]} f4 {[%clk 00:27:06]} {[%emt 00:00:06]}
47. Kg2 {[%clk 00:03:16]} {[%emt 00:00:07]} g5 {[%clk 00:27:30]} {[%emt
00:00:07]} 48. Rb2 {[%clk 00:03:39]} {[%emt 00:00:08]} Rg3+ {[%clk 00:27:21]}
{[%emt 00:00:39]} 49. Kf2 {[%clk 00:04:03]} {[%emt 00:00:06]} Rh3 {[%clk
00:27:44]} {[%emt 00:00:06]} 50. Kg2 {[%clk 00:04:25]} {[%emt 00:00:08]} f3+
{[%clk 00:28:04]} {[%emt 00:00:10]} 51. Kg1 {[%clk 00:04:51]} {[%emt 00:00:04]}
Kg3 {[%clk 00:28:23]} {[%emt 00:00:11]} 52. a4 {[%clk 00:05:16]} {[%emt
00:00:05]} Rh4 {[%clk 00:28:40]} {[%emt 00:00:13]} 0-1

[Event "1er Open Estival de Marseille"]
[Site "Marseille, France"]
[Date "2023.08.01"]
[Round "2.3"]
[White "Philippe, Guillaume"]
[Black "Deladerriere, Calypso"]
[Result "1-0"]
[TimeControl "90+30s/move"]
[WhiteElo "2362"]
[BlackElo "1910"]

1. f4 {[%emt 00:28:03]} d5 {[%emt 00:00:44]} 2. Nf3 {[%emt 00:00:05]} Nf6
{[%emt 00:00:27]} 3. g3 {[%emt 00:00:17]} b6 {[%emt 00:01:07]} 4. Bg2 {[%emt
00:00:10]} Bb7 {[%emt 00:00:27]} 5. O-O {[%emt 00:00:24]} e6 {[%emt 00:00:22]}
6. d3 {[%emt 00:01:58]} Be7 {[%emt 00:03:18]} 7. Qe1 {[%emt 00:01:05]} O-O
{[%emt 00:04:21]} 8. Nc3 {[%emt 00:00:48]} Nc6 {[%emt 00:05:55]} 9. a3 {[%emt
00:01:15]} a5 {[%emt 00:03:24]} 10. h3 {[%emt 00:02:50]} Re8 {[%emt 00:06:23]}
11. g4 {[%emt 00:05:13]} Bc5+ {[%emt 00:08:45]} 12. Kh1 {[%emt 00:02:29]} e5
{[%emt 00:02:25]} 13. fxe5 {[%emt 00:05:08]} Nxe5 {[%emt 00:00:45]} 14. Nxe5
{[%emt 00:04:40]} Rxe5 {[%emt 00:00:16]} 15. Qh4 {[%emt 00:00:09]} Qc8 {[%emt
00:08:41]} 16. g5 {[%emt 00:03:41]} d4 {[%emt 00:01:21]} 17. gxf6 {[%emt
00:01:03]} Bxg2+ {[%emt 00:01:34]} 18. Kxg2 {[%emt 00:00:13]} dxc3 {[%emt
00:00:31]} 19. e4 {[%emt 00:04:33]} Bd4 {[%emt 00:08:46]} 20. bxc3 {[%emt
00:13:12]} Bxc3 {[%emt 00:00:57]} 21. Rb1 {[%emt 00:00:43]} Re6 {[%emt
00:01:44]} 22. Bb2 {[%emt 00:09:11]} Bxb2 {[%emt 00:03:46]} 23. Rxb2 {[%emt
00:00:12]} Qd8 {[%emt 00:01:37]} 24. Rb5 {[%emt 00:00:24]} Rxf6 {[%emt
00:01:54]} 25. Rxf6 {[%emt 00:00:06]} Qxf6 {[%emt 00:00:12]} 26. Qxf6 {[%emt
00:00:04]} gxf6 {[%emt 00:00:08]} 27. Kf3 {[%emt 00:00:09]} Rd8 {[%emt
00:03:01]} 28. Ke3 {[%emt 00:01:18]} Kf8 {[%emt 00:09:05]} 29. Rh5 {[%emt
00:05:33]} Kg7 {[%emt 00:00:27]} 30. d4 {[%emt 00:05:56]} c6 {[%emt 00:00:41]}
31. c4 Rc8 {[%emt 00:02:28]} 32. Kd3 Rd8 {[%emt 00:06:15]} 33. a4 Rb8 {[%emt
00:10:29]} 34. Rf5 h6 {[%emt 00:02:51]} 35. h4 Kg6 {[%emt 00:02:46]} 36. h5+
Kg7 {[%emt 00:00:32]} 37. Ke3 Rc8 {[%emt 00:07:21]} 38. c5 {[%emt 00:02:29]} b5
{[%emt 00:00:17]} 39. axb5 {[%emt 00:00:09]} cxb5 {[%emt 00:01:02]} 40. Kd3
{[%emt 00:00:03]} Rc6 {[%emt 00:00:46]} 41. Rf1 {[%emt 00:05:34]} Kf8 {[%emt
00:00:07]} 42. Rb1 {[%emt 00:00:48]} b4 {[%emt 00:00:02]} 43. Kc4 {[%emt
00:00:04]} Ra6 {[%emt 00:00:49]} 44. d5 {[%emt 00:00:40]} Ke7 {[%emt 00:00:43]}
45. c6 {[%emt 00:01:16]} Kd6 {[%emt 00:00:40]} 46. Rf1 {[%emt 00:00:16]} a4
{[%emt 00:00:36]} 47. Kxb4 {[%emt 00:00:25]} a3 {[%emt 00:00:21]} 48. Rxf6+
{[%emt 00:02:42]} Ke5 {[%emt 00:00:41]} 49. c7 {[%emt 00:00:08]} Ra8 {[%emt
00:00:01]} 50. Ra6 {[%emt 00:00:15]} Rc8 {[%emt 00:00:42]} 51. d6 {[%emt
00:00:07]} Ke6 {[%emt 00:00:19]} 52. Kc5 {[%emt 00:00:04]} Kd7 {[%emt
00:00:35]} 53. Rxa3 {[%emt 00:00:05]} Re8 {[%emt 00:00:43]} 54. Rb3 {[%emt
00:01:32]} f5 {[%emt 00:00:46]} 55. Rb8 {[%emt 00:00:16]} 1-0

[Event "1er Open Estival de Marseille"]
[Site "Marseille, France"]
[Date "2023.08.01"]
[Round "2.1"]
[White "Degraeve, Jean-Marc"]
[Black "Bassal, Samuel"]
[Result "1-0"]
[TimeControl "90+30s/move"]
[WhiteElo "2466"]
[BlackElo "1974"]

1. e4 {[%clk 01:21:02]} {[%emt 00:09:56]} e6 {[%clk 01:30:49]} {[%emt
00:00:12]} 2. d4 {[%clk 01:21:26]} {[%emt 00:00:06]} d5 {[%clk 01:31:11]}
{[%emt 00:00:08]} 3. Nd2 {[%clk 01:21:49]} {[%emt 00:00:07]} Nf6 {[%clk
01:31:15]} {[%emt 00:00:27]} 4. e5 {[%clk 01:22:12]} {[%emt 00:00:06]} Nfd7
{[%clk 01:31:38]} {[%emt 00:00:07]} 5. Bd3 {[%clk 01:22:34]} {[%emt 00:00:08]}
c5 {[%clk 01:31:55]} {[%emt 00:00:14]} 6. c3 {[%clk 01:22:56]} {[%emt
00:00:08]} Nc6 {[%clk 01:32:13]} {[%emt 00:00:11]} 7. Ngf3 {[%clk 01:23:17]}
{[%emt 00:00:08]} Be7 {[%clk 01:30:46]} {[%emt 00:01:57]} 8. O-O {[%clk
01:23:04]} {[%emt 00:00:42]} Qc7 {[%clk 01:30:13]} {[%emt 00:01:03]} 9. Re1
{[%clk 01:22:03]} {[%emt 00:01:30]} c4 {[%clk 01:27:52]} {[%emt 00:02:52]} 10.
Bc2 {[%clk 01:22:21]} {[%emt 00:00:12]} b5 {[%clk 01:27:44]} {[%emt 00:00:40]}
11. Nf1 {[%clk 01:21:12]} {[%emt 00:01:38]} h6 {[%clk 01:27:29]} {[%emt
00:00:45]} 12. h4 {[%emt 00:03:47]} Bb7 {[%clk 01:27:39]} {[%emt 00:00:18]} 13.
h5 {[%clk 01:17:37]} {[%emt 00:00:49]} O-O-O {[%clk 01:26:53]} {[%emt
00:01:15]} 14. N3h2 {[%emt 00:04:19]} Nb6 {[%clk 01:15:20]} {[%emt 00:09:22]}
15. f4 {[%emt 00:05:20]} Qd7 {[%clk 01:11:39]} {[%emt 00:01:30]} 16. Qg4 {[%emt
00:06:33]} Kb8 {[%clk 01:03:12]} {[%emt 00:04:29]} 17. f5 {[%emt 00:03:12]} Bc8
{[%clk 00:53:41]} {[%emt 00:09:02]} 18. Qxg7 {[%clk 00:51:11]} {[%emt
00:20:21]} Bh4 {[%clk 00:47:09]} {[%emt 00:07:01]} 19. g3 {[%clk 00:42:59]}
{[%emt 00:08:42]} Rdg8 {[%clk 00:42:11]} {[%emt 00:05:28]} 20. f6 {[%clk
00:39:31]} {[%emt 00:03:58]} Rxg7 {[%clk 00:36:15]} {[%emt 00:06:27]} 21. fxg7
{[%clk 00:39:41]} Rg8 {[%clk 00:36:01]} {[%emt 00:01:04]} 22. Bxh6 {[%emt
00:03:39]} f5 {[%clk 00:24:44]} {[%emt 00:09:48]} 23. gxh4 {[%clk 00:37:04]}
Nd8 {[%clk 00:24:17]} {[%emt 00:02:54]} 24. Kh1 {[%emt 00:14:06]} Qe8 {[%clk
00:20:21]} 25. Ng3 {[%clk 00:27:10]} {[%emt 00:01:13]} Kb7 {[%clk 00:17:56]}
{[%emt 00:03:25]} 26. Rg1 {[%clk 00:24:13]} {[%emt 00:03:56]} Nf7 {[%clk
00:17:37]} {[%emt 00:00:50]} 27. Bf4 {[%clk 00:23:11]} {[%emt 00:01:32]} Rxg7
{[%clk 00:17:35]} {[%emt 00:00:32]} 28. h6 {[%clk 00:23:19]} {[%emt 00:00:22]}
Rh7 {[%clk 00:12:54]} {[%emt 00:05:11]} 29. Nh5 {[%clk 00:23:23]} {[%emt
00:00:25]} Nd7 {[%clk 00:08:39]} {[%emt 00:04:45]} 30. Rg7 {[%clk 00:17:01]}
{[%emt 00:06:51]} Rh8 {[%clk 00:07:03]} {[%emt 00:02:07]} 31. Rag1 {[%clk
00:13:38]} {[%emt 00:03:53]} Nxh6 {[%clk 00:05:17]} {[%emt 00:02:16]} 32. Nf6
{[%clk 00:13:59]} {[%emt 00:00:09]} Qd8 {[%clk 00:04:41]} {[%emt 00:01:07]} 33.
Bg5 {[%clk 00:11:42]} Qc7 {[%clk 00:04:58]} {[%emt 00:03:00]} 34. Re7 {[%clk
00:11:23]} Qc6 {[%clk 00:04:14]} {[%emt 00:02:03]} 35. Bxh6 {[%clk 00:10:06]}
Rxh6 {[%clk 00:04:37]} {[%emt 00:01:53]} 36. Rgg7 {[%emt 00:05:06]} Kc7 37. Nf3
{[%clk 00:07:11]} {[%emt 00:01:14]} Rxf6 {[%clk 00:01:04]} {[%emt 00:02:08]} 38.
exf6 {[%clk 00:07:35]} {[%emt 00:00:06]} Kd8 {[%clk 00:01:28]} {[%emt
00:00:06]} 39. Rg8+ {[%clk 00:07:57]} {[%emt 00:00:07]} Kc7 {[%clk 00:01:50]}
{[%emt 00:00:09]} 40. f7 {[%clk 00:08:02]} {[%emt 00:00:24]} Kd6 {[%clk
00:01:31]} {[%emt 00:00:49]} 41. Rxd7+ {[%clk 00:08:25]} {[%emt 00:00:07]} 1-0

[ePGN "0.1;DGT LiveChess/2.2.5"]

[Event "1er Open Estival de Marseille"]
[Site "Marseille, France"]
[Date "2023.08.01"]
[Round "3.2"]
[White "Espinosa Aranda, Angel"]
[Black "Dudognon, Thibault"]
[Result "1/2-1/2"]
[TimeControl "90+30s/move"]
[WhiteElo "2443"]
[BlackElo "2279"]

1. e4 {[%clk 01:30:54]} {[%emt 00:00:05]} c5 {[%clk 01:29:58]} {[%emt
00:01:02]} 2. Ne2 {[%clk 01:31:08]} {[%emt 00:00:16]} d6 {[%clk 01:30:01]}
{[%emt 00:00:26]} 3. g3 {[%clk 01:31:22]} {[%emt 00:00:16]} Nc6 {[%clk
01:29:57]} {[%emt 00:00:34]} 4. Bg2 {[%clk 01:31:44]} {[%emt 00:00:09]} g6
{[%clk 01:30:14]} {[%emt 00:00:13]} 5. c3 {[%clk 01:32:07]} {[%emt 00:00:07]}
h5 {[%clk 01:26:39]} {[%emt 00:04:04]} 6. h3 {[%clk 01:30:45]} {[%emt
00:01:52]} Bd7 {[%clk 01:21:28]} {[%emt 00:05:41]} 7. d4 {[%clk 01:30:59]}
{[%emt 00:00:17]} Bg7 {[%clk 01:19:23]} {[%emt 00:02:35]} 8. Be3 {[%clk
01:30:02]} {[%emt 00:01:27]} b6 {[%clk 01:18:11]} {[%emt 00:01:42]} 9. Na3
{[%clk 01:25:53]} {[%emt 00:04:40]} Rc8 {[%clk 01:08:35]} {[%emt 00:10:05]} 10.
Qd2 {[%clk 01:23:01]} {[%emt 00:03:22]} Na5 {[%clk 01:05:27]} {[%emt 00:03:38]}
11. O-O {[%clk 01:14:53]} {[%emt 00:08:39]} Nh6 {[%clk 01:00:55]} {[%emt
00:05:02]} 12. Rac1 {[%clk 01:11:33]} {[%emt 00:03:51]} c4 {[%clk 00:58:21]}
{[%emt 00:03:04]} 13. d5 {[%clk 01:08:05]} {[%emt 00:03:58]} a6 {[%clk
00:54:01]} {[%emt 00:04:49]} 14. Nd4 {[%clk 01:05:19]} {[%emt 00:03:16]} Rb8
{[%clk 00:44:13]} {[%emt 00:10:17]} 15. b4 {[%clk 00:51:12]} {[%emt 00:14:37]}
cxb3 {[%clk 00:44:30]} {[%emt 00:00:13]} 16. axb3 {[%clk 00:51:33]} {[%emt
00:00:10]} Qc8 {[%clk 00:43:16]} {[%emt 00:01:43]} 17. h4 {[%clk 00:47:57]}
{[%emt 00:04:07]} Ng4 {[%clk 00:42:16]} {[%emt 00:01:29]} 18. Bf4 {[%clk
00:48:19]} {[%emt 00:00:08]} O-O {[%clk 00:41:33]} {[%emt 00:01:13]} 19. b4
{[%clk 00:44:19]} {[%emt 00:04:31]} Nc4 {[%clk 00:39:48]} {[%emt 00:02:15]} 20.
Nxc4 {[%clk 00:44:42]} {[%emt 00:00:07]} Qxc4 {[%clk 00:40:13]} {[%emt
00:00:05]} 21. Rfe1 {[%clk 00:45:05]} {[%emt 00:00:07]} Ne5 {[%clk 00:36:20]}
{[%emt 00:04:23]} 22. Kh1 {[%clk 00:32:42]} {[%emt 00:12:54]} b5 {[%clk
00:35:40]} {[%emt 00:01:10]} 23. Bf1 {[%clk 00:31:18]} {[%emt 00:01:54]} Qc8
{[%clk 00:35:50]} {[%emt 00:00:20]} 24. Bxe5 {[%clk 00:29:29]} {[%emt
00:02:20]} Bxe5 {[%clk 00:35:25]} {[%emt 00:00:54]} 25. c4 {[%clk 00:29:53]}
{[%emt 00:00:07]} Bxd4 {[%clk 00:30:43]} {[%emt 00:05:11]} 26. Qxd4 {[%clk
00:24:18]} {[%emt 00:06:05]} 1/2-1/2

[Event "1er Open Estival de Marseille"]
[Site "Marseille, France"]
[Date "2023.08.01"]
[Round "3.1"]
[White "Zienkiewicz, Jan"]
[Black "Degraeve, Jean-Marc"]
[Result "1-0"]
[TimeControl "90+30s/move"]
[WhiteElo "2189"]
[BlackElo "2466"]

1. e4 {[%clk 01:26:44]} {[%emt 00:04:16]} Nf6 {[%clk 01:30:43]} {[%emt
00:00:18]} 2. e5 {[%clk 01:26:59]} {[%emt 00:00:15]} Nd5 {[%clk 01:31:07]}
{[%emt 00:00:05]} 3. d4 {[%clk 01:26:40]} {[%emt 00:00:49]} d6 {[%clk
01:31:31]} {[%emt 00:00:06]} 4. c4 {[%clk 01:27:01]} {[%emt 00:00:09]} Nb6
{[%clk 01:31:55]} {[%emt 00:00:06]} 5. exd6 {[%clk 01:27:15]} {[%emt 00:00:17]}
exd6 {[%clk 01:32:17]} {[%emt 00:00:08]} 6. Nc3 {[%clk 01:27:30]} {[%emt
00:00:15]} Nc6 {[%clk 01:32:39]} {[%emt 00:00:08]} 7. h3 {[%clk 01:27:45]}
{[%emt 00:00:15]} Be7 {[%clk 01:32:09]} {[%emt 00:00:59]} 8. Nf3 {[%clk
01:27:51]} {[%emt 00:00:25]} Bf5 {[%clk 01:29:58]} {[%emt 00:02:41]} 9. Bd3
{[%clk 01:19:09]} {[%emt 00:09:11]} Qd7 {[%clk 01:29:14]} {[%emt 00:01:15]} 10.
Be3 {[%clk 01:11:19]} {[%emt 00:08:20]} O-O {[%clk 01:15:06]} {[%emt 00:14:37]}
11. O-O {[%clk 01:06:42]} {[%emt 00:05:07]} Bf6 {[%clk 01:03:51]} {[%emt
00:11:45]} 12. b3 {[%clk 00:58:38]} {[%emt 00:08:34]} Rfe8 {[%clk 01:02:53]}
{[%emt 00:01:27]} 13. Qd2 {[%clk 00:51:27]} {[%emt 00:07:42]} Bxd3 {[%clk
00:56:53]} {[%emt 00:06:30]} 14. Qxd3 {[%clk 00:51:42]} {[%emt 00:00:14]} d5
{[%clk 00:57:11]} {[%emt 00:00:11]} 15. c5 {[%clk 00:48:35]} {[%emt 00:03:38]}
Nc8 {[%clk 00:57:34]} {[%emt 00:00:07]} 16. Bg5 {[%clk 00:45:48]} {[%emt
00:03:18]} Bxg5 {[%clk 00:49:39]} {[%emt 00:08:25]} 17. Nxg5 {[%clk 00:45:50]}
{[%emt 00:00:28]} g6 {[%clk 00:50:07]} {[%emt 00:00:02]} 18. Qf3 {[%clk
00:37:00]} {[%emt 00:09:21]} Rd8 {[%clk 00:39:11]} {[%emt 00:11:27]} 19. Qf4
{[%clk 00:31:58]} {[%emt 00:05:31]} Kg7 {[%clk 00:34:45]} {[%emt 00:04:56]} 20.
Rfe1 {[%clk 00:27:36]} {[%emt 00:04:52]} h6 {[%clk 00:34:22]} {[%emt 00:00:53]}
21. Nf3 {[%clk 00:27:47]} {[%emt 00:00:19]} N8e7 {[%clk 00:34:14]} {[%emt
00:00:38]} 22. Ne5 {[%clk 00:20:04]} {[%emt 00:08:13]} Qf5 {[%clk 00:34:18]}
{[%emt 00:00:26]} 23. Qd2 {[%clk 00:18:35]} {[%emt 00:01:59]} g5 {[%clk
00:20:21]} {[%emt 00:14:27]} 24. Ne2 {[%clk 00:13:13]} {[%emt 00:05:52]} Nxe5
{[%clk 00:16:49]} {[%emt 00:04:02]} 25. Ng3 {[%clk 00:12:45]} {[%emt 00:00:58]}
Qg6 {[%clk 00:17:03]} {[%emt 00:00:15]} 26. Rxe5 {[%clk 00:12:55]} {[%emt
00:00:21]} Nc6 {[%clk 00:17:24]} {[%emt 00:00:08]} 27. Rf5 {[%clk 00:07:44]}
{[%emt 00:05:42]} Rd7 {[%clk 00:13:11]} {[%emt 00:04:42]} 28. Qd1 {[%clk
00:06:13]} {[%emt 00:02:01]} Rad8 {[%clk 00:04:25]} {[%emt 00:09:16]} 29. Qg4
{[%clk 00:06:03]} {[%emt 00:00:40]} Kf8 {[%clk 00:01:18]} {[%emt 00:03:37]} 30.
Rd1 {[%clk 00:04:10]} {[%emt 00:02:23]} 1-0

[Event "1er Open Estival de Marseille"]
[Site "Marseille, France"]
[Date "2023.08.01"]
[Round "3.3"]
[White "Avanesyan, Davit"]
[Black "Philippe, Guillaume"]
[Result "0-1"]
[TimeControl "90+30s/move"]
[WhiteElo "2118"]
[BlackElo "2362"]

1. e4 {[%emt 00:36:02]} g6 {[%emt 00:05:22]} 2. d4 {[%emt 00:00:04]} c6 {[%emt
00:00:11]} 3. Nc3 {[%emt 00:00:10]} d5 {[%emt 00:00:19]} 4. f3 {[%emt
00:00:03]} b5 {[%emt 00:01:08]} 5. a3 {[%emt 00:13:51]} a6 {[%emt 00:00:36]} 6.
Be3 {[%emt 00:02:40]} Bg7 {[%emt 00:00:42]} 7. Qd2 {[%emt 00:03:09]} h5 {[%emt
00:00:23]} 8. exd5 {[%emt 00:01:08]} cxd5 {[%emt 00:00:31]} 9. a4 {[%emt
00:05:24]} b4 {[%emt 00:02:23]} 10. Na2 {[%emt 00:00:04]} a5 {[%emt 00:00:27]}
11. c3 {[%emt 00:00:03]} bxc3 {[%emt 00:03:05]} 12. Bb5+ {[%emt 00:00:04]} Bd7
{[%emt 00:06:16]} 13. Nxc3 {[%emt 00:00:12]} Nf6 {[%emt 00:00:42]} 14. Nge2
{[%emt 00:01:14]} O-O {[%emt 00:00:48]} 15. Bh6 {[%emt 00:01:43]} Bxb5 {[%emt
00:06:21]} 16. Nxb5 {[%emt 00:00:05]} Nc6 {[%emt 00:00:15]} 17. Bxg7 {[%emt
00:00:05]} Kxg7 {[%emt 00:00:07]} 18. O-O {[%emt 00:00:32]} Qb6 {[%emt
00:00:12]} 19. Kh1 {[%emt 00:00:25]} Rfc8 {[%emt 00:02:33]} 20. Rac1 {[%emt
00:02:45]} Nb4 {[%emt 00:01:51]} 21. Nf4 {[%emt 00:00:53]} Qb7 {[%emt
00:09:07]} 22. Nd3 {[%emt 00:03:53]} Nxd3 {[%emt 00:02:02]} 23. Qxd3 {[%emt
00:00:04]} Rxc1 {[%emt 00:01:56]} 24. Rxc1 {[%emt 00:00:04]} Rc8 {[%emt
00:00:04]} 25. Rc3 {[%emt 00:03:44]} h4 {[%emt 00:03:48]} 26. Qc2 {[%emt
00:00:30]} Rxc3 {[%emt 00:01:48]} 27. Qxc3 {[%emt 00:00:03]} Qb6 {[%emt
00:00:10]} 28. b4 {[%emt 00:05:42]} axb4 {[%emt 00:03:44]} 29. Qxb4 {[%emt
00:00:04]} Qe6 {[%emt 00:00:23]} 30. Qd2 {[%emt 00:00:24]} h3 {[%emt 00:00:46]}
31. gxh3 Qxh3 32. Qe2 {[%emt 00:00:17]} Kf8 {[%emt 00:11:30]} 33. a5 {[%emt
00:02:03]} Qc8 {[%emt 00:00:27]} 34. Qd2 {[%emt 00:01:47]} Qc4 {[%emt
00:00:16]} 0-1

[ePGN "0.1;DGT LiveChess/2.2.5"]